bitfinex/quotes_BTCUSD_20241205
["timestamp","ask_amount","ask_price","bid_price","bid_amount"]
[1733435271150,6.1e-07,99120.0,99119.0,0.54355228]
[1733435271562,6.1e-07,99120.0,99119.0,0.55255228]
[1733435272032,0.0009931,99143.0,99130.0,0.301755]
[1733435272033,8.8e-07,99131.0,99130.0,0.301755]
[1733435272241,0.0017322,99170.0,99130.0,0.301755]
[1733435272242,0.0098287,99151.0,99149.0,0.1]
[1733435272453,0.0098287,99151.0,99150.0,0.35272234]
[1733435272659,0.00058665,99159.0,99158.0,0.201698]
[1733435273105,0.00058665,99159.0,99158.0,0.30137405]
[1733435273773,0.00058665,99159.0,99158.0,0.45137405]
[1733435274016,0.00058665,99159.0,99158.0,0.49380296]
[1733435274467,0.00058665,99159.0,99158.0,0.52142362]
[1733435274686,1e-08,99159.0,99158.0,0.52142362]
[1733435275333,1e-08,99159.0,99158.0,0.52442362]
[1733435277168,0.00749308,99159.0,99158.0,0.52442362]
[1733435278114,1.82560506,99200.0,99197.0,0.201618]
[1733435278355,1.82560506,99200.0,99198.0,0.10967605]
[1733435278567,1.82560506,99200.0,99198.0,0.24967605]
[1733435278568,0.0036139,99199.0,99198.0,0.24967605]
[1733435279937,0.0036139,99199.0,99198.0,0.09967605]
[1733435280163,0.0036139,99199.0,99198.0,0.24967605]
[1733435280625,0.0036139,99199.0,99198.0,0.25967605]
[1733435281075,0.0036139,99199.0,99198.0,0.26567605]
[1733435281501,0.0036139,99199.0,99198.0,0.25267605]
[1733435282147,0.0036139,99199.0,99198.0,0.24967605]
[1733435282594,0.0036139,99199.0,99198.0,0.25167605]
[1733435282810,0.0036139,99199.0,99198.0,0.26067605]
[1733435283024,1.72858998,99200.0,99199.0,0.351614]
[1733435283233,1.72858998,99200.0,99199.0,0.62699005]
[1733435283524,1.58088671,99200.0,99199.0,0.62699005]
[1733435283751,1.48196971,99200.0,99199.0,0.62699005]
[1733435283972,1.44149757,99200.0,99199.0,0.62699005]
[1733435284500,0.201498,99257.0,99199.0,0.62699005]
[1733435284501,0.078,99262.0,99259.0,0.201493]
[1733435284994,0.00145234,99260.0,99259.0,0.201493]
[1733435286322,0.00145234,99260.0,99245.0,0.201521]
[1733435286325,0.00145234,99260.0,99199.0,0.0773]
[1733435286326,0.1265,99259.0,99199.0,0.009]
[1733435286557,0.1265,99259.0,99210.0,0.11718677]
[1733435286558,0.201515,99248.0,99210.0,0.11718677]
[1733435286772,0.023,99251.0,99214.0,0.02001766]
[1733435286984,0.0009868,99248.0,99215.0,0.10068371]
[1733435287197,0.0009868,99248.0,99232.0,0.201547]
[1733435287420,0.2025038,99248.0,99232.0,0.403094]
[1733435287841,0.0009868,99248.0,99232.0,0.403094]
[1733435288067,0.0009868,99248.0,99237.0,0.201537]
[1733435288290,0.0009868,99248.0,99220.0,0.17540576]
[1733435288508,0.0009868,99248.0,99244.0,0.201522]
[1733435288755,0.001,99248.0,99245.0,0.201521]
[1733435289224,0.0804,99258.0,99256.0,0.201498]
[1733435289658,0.00145234,99260.0,99256.0,0.201498]
[1733435289887,0.00145234,99260.0,99254.0,0.201501]
[1733435290136,0.00145234,99260.0,99243.0,0.201524]
[1733435290379,0.00145234,99260.0,99250.0,0.20151]
[1733435290607,0.001,99258.0,99256.0,0.001]
[1733435291508,0.001,99258.0,99256.0,0.00087471]
[1733435291754,0.00288252,99257.0,99248.0,0.201514]
[1733435291967,0.023,99256.0,99235.0,0.20154]
[1733435292207,0.201512,99250.0,99235.0,0.20154]
[1733435292426,0.201512,99250.0,99243.0,0.005]
[1733435292659,0.20537906,99255.0,99240.0,0.20153]
[1733435292869,0.0778,99248.0,99200.0,0.20161]
[1733435293093,0.0778,99248.0,99222.0,0.201567]
[1733435293304,0.0778,99248.0,99200.0,0.30161]
[1733435293305,0.201538,99237.0,99223.0,0.09967605]
[1733435293743,0.201541,99235.0,99223.0,0.09967605]
[1733435293968,0.201534,99239.0,99224.0,0.201564]
[1733435294202,0.201534,99239.0,99224.0,0.30124005]
[1733435294203,0.00287944,99234.0,99224.0,0.30124005]
[1733435294422,0.201534,99239.0,99224.0,0.30124005]
[1733435294631,0.201537,99237.0,99224.0,0.09967605]
[1733435294859,0.201537,99237.0,99203.0,0.15]
[1733435294860,0.201549,99231.0,99203.0,0.15]
[1733435295068,0.0492,99230.0,99223.0,0.002]
[1733435295294,0.05207557,99230.0,99223.0,0.002]
[1733435295741,0.05207557,99230.0,99219.0,0.201574]
[1733435295971,0.05207557,99230.0,99224.0,0.002]
[1733435296208,0.0492,99230.0,99224.0,0.002]
[1733435296442,0.04937586,99230.0,99223.0,0.006]
[1733435296695,0.00287628,99229.0,99220.0,0.201572]
[1733435296918,0.00287628,99229.0,99220.0,0.403144]
[1733435297142,0.05037586,99230.0,99220.0,0.403144]
[1733435297575,0.05137586,99230.0,99220.0,0.403144]
[1733435297788,0.05037586,99230.0,99220.0,0.403144]
[1733435298206,0.04937586,99230.0,99220.0,0.404144]
[1733435298470,0.201565,99224.0,99220.0,0.001]
[1733435298706,0.02587147,99223.0,99220.0,0.001]
[1733435299196,0.201568,99222.0,99220.0,0.001]
[1733435299410,0.023,99221.0,99220.0,0.0027294]
[1733435299874,0.15,99217.0,99190.0,0.0017298]
[1733435300095,0.00286486,99216.0,99200.0,0.201612]
[1733435300331,0.00286486,99216.0,99191.0,0.09967605]
[1733435300332,0.201582,99215.0,99191.0,0.09967605]
[1733435300535,0.201584,99214.0,99197.0,0.201617]
[1733435300740,0.20444815,99214.0,99197.0,0.201617]
[1733435300950,0.201594,99209.0,99197.0,0.201617]
[1733435301156,0.201586,99213.0,99191.0,0.09967605]
[1733435301363,0.00286274,99208.0,99201.0,0.201609]
[1733435301592,0.201586,99213.0,99201.0,0.201609]
[1733435302038,0.00286397,99212.0,99201.0,0.201609]
[1733435302966,0.20159,99211.0,99197.0,0.201618]
[1733435303394,0.00286397,99212.0,99191.0,0.09967605]
[1733435303626,0.00286397,99212.0,99211.0,0.20159]
[1733435303848,0.004,99213.0,99211.0,0.20159]
[1733435304091,0.002,99212.0,99211.0,0.20159]
[1733435304307,0.08354056,99230.0,99211.0,0.20159]
[1733435304308,0.28509356,99230.0,99216.0,0.20158]
[1733435304538,0.04435321,99229.0,99205.0,0.403203]
[1733435304749,0.03111915,99228.0,99209.0,0.201593]
[1733435304963,0.004,99212.0,99209.0,0.201593]
[1733435305181,0.004,99212.0,99209.0,0.403187]
[1733435305403,0.201558,99227.0,99206.0,0.2016]
[1733435305619,0.201562,99225.0,99210.0,0.201592]
[1733435305843,0.01323406,99229.0,99205.0,0.001]
[1733435305844,0.201595,99209.0,99205.0,0.001]
[1733435306061,0.201598,99207.0,99205.0,0.001]
[1733435306304,0.03113966,99206.0,99186.0,0.201639]
[1733435306516,0.03113966,99205.0,99196.0,0.20162]
[1733435306779,0.03113966,99204.0,99196.0,0.20162]
[1733435306991,0.03113966,99203.0,99196.0,0.20162]
[1733435307235,0.03113966,99202.0,99196.0,0.20162]
[1733435307447,0.03113966,99201.0,99196.0,0.20162]
[1733435307665,0.03113966,99200.0,99192.0,0.201629]
[1733435307871,0.03113966,99199.0,99192.0,0.201629]
[1733435308117,0.03113966,99198.0,99192.0,0.201629]
[1733435308323,0.03113966,99197.0,99192.0,0.201629]
[1733435308541,0.03113966,99196.0,99192.0,0.201629]
[1733435308686,0.03113966,99195.0,99192.0,0.201629]
[1733435308905,0.03113966,99194.0,99192.0,0.00017602]
[1733435309081,0.03113966,99193.0,99192.0,0.00317602]
[1733435309345,0.03113966,99193.0,99192.0,0.00717602]
[1733435309561,0.03399967,99193.0,99192.0,0.00017602]
[1733435309764,0.03399967,99193.0,99192.0,0.00417602]
[1733435309984,0.03399967,99193.0,99192.0,0.00017602]
[1733435310200,0.03399967,99193.0,99192.0,0.00317602]
[1733435311062,0.09788544,99193.0,99192.0,0.00317602]
[1733435311267,0.03399967,99193.0,99192.0,0.00317602]
[1733435311924,0.03399967,99193.0,99192.0,0.00017602]
[1733435313217,0.03399967,99193.0,99192.0,0.09985207]
[1733435313425,0.03399967,99193.0,99192.0,0.30148107]
[1733435313635,0.00286001,99193.0,99192.0,0.30148107]
[1733435313855,0.083,99220.0,99205.0,0.201602]
[1733435313856,0.201579,99217.0,99205.0,0.201602]
[1733435314072,0.03118515,99215.0,99205.0,0.201602]
[1733435314284,0.03118515,99214.0,99205.0,0.201602]
[1733435314533,0.03118515,99213.0,99205.0,0.403204]
[1733435314752,0.03118515,99212.0,99209.0,0.201593]
[1733435314978,0.03118515,99211.0,99209.0,0.201593]
[1733435315189,0.03118515,99210.0,99209.0,0.201593]
[1733435316061,0.000999,99229.0,99209.0,0.201593]
[1733435316283,0.03118438,99227.0,99210.0,0.201592]
[1733435316515,0.03118438,99226.0,99210.0,0.201592]
[1733435316728,0.03118438,99225.0,99222.0,0.201566]
[1733435316942,0.03118438,99225.0,99197.0,0.201617]
[1733435316943,0.201576,99219.0,99191.0,0.403262]
[1733435317163,0.201587,99213.0,99209.0,0.004]
[1733435317393,0.03118438,99212.0,99209.0,0.004]
[1733435317606,0.03118438,99211.0,99209.0,0.004]
[1733435317823,0.03118438,99210.0,99209.0,0.004]
[1733435318028,0.03118438,99210.0,99209.0,0.006]
[1733435318237,0.03118438,99210.0,99209.0,0.002]
[1733435318482,0.201594,99209.0,99193.0,0.201627]
[1733435318689,0.201598,99207.0,99193.0,0.20180302]
[1733435318926,0.03118438,99206.0,99193.0,0.00017602]
[1733435319156,0.03118438,99205.0,99193.0,0.00017602]
[1733435319368,0.05418438,99204.0,99193.0,0.00017602]
[1733435319576,0.201614,99200.0,99193.0,0.00017602]
[1733435319788,0.03118438,99199.0,99193.0,0.00217602]
[1733435319998,0.00517625,99199.0,99193.0,0.00217602]
[1733435320208,0.201607,99203.0,99193.0,0.00217602]
[1733435320429,0.00517589,99198.0,99193.0,0.00217602]
[1733435320645,0.023,99204.0,99193.0,0.00217602]
[1733435320857,0.00517307,99197.0,99193.0,0.00217602]
[1733435321072,0.201606,99203.0,99193.0,0.00217602]
[1733435321283,0.00518467,99196.0,99193.0,0.00017602]
[1733435321495,0.201606,99203.0,99193.0,0.00017602]
[1733435321718,0.00517202,99195.0,99193.0,0.00217602]
[1733435321949,0.201605,99204.0,99193.0,0.00517602]
[1733435322248,0.00516916,99203.0,99193.0,0.00017602]
[1733435322441,0.00516916,99203.0,99193.0,0.00117602]
[1733435322653,0.00516916,99203.0,99193.0,0.00417602]
[1733435323084,0.00516916,99203.0,99193.0,0.00317602]
[1733435323301,0.20677516,99203.0,99193.0,0.00317602]
[1733435323525,0.20677516,99203.0,99193.0,0.00017602]
[1733435323756,0.21377516,99203.0,99193.0,0.00117602]
[1733435324821,0.01216916,99203.0,99193.0,0.00117602]
[1733435325048,0.01216916,99203.0,99199.0,0.201614]
[1733435325262,0.007,99203.0,99198.0,0.201616]
[1733435325687,0.00516747,99202.0,99193.0,0.00117602]
[1733435325900,0.00516747,99202.0,99193.0,0.10085207]
[1733435326109,0.004,99203.0,99193.0,0.00017602]
[1733435326343,0.013,99203.0,99198.0,0.001]
[1733435326542,0.201613,99200.0,99198.0,0.001]
[1733435326762,0.201613,99200.0,99193.0,0.00017602]
[1733435326971,0.201616,99198.0,99193.0,0.00117602]
[1733435327201,0.201625,99194.0,99193.0,0.00117602]
[1733435327429,0.20679073,99194.0,99193.0,0.00117602]
[1733435328996,0.20679073,99194.0,99193.0,0.00017602]
[1733435329217,0.20679073,99194.0,99178.0,0.201657]
[1733435329428,0.20696652,99194.0,99178.0,0.30133305]
[1733435330509,0.00534152,99194.0,99178.0,0.30733305]
[1733435330720,0.00534152,99194.0,99178.0,0.10567605]
[1733435330950,0.201638,99188.0,99178.0,0.10567605]
[1733435331182,0.00017579,99194.0,99191.0,0.20163]
[1733435331410,0.00516538,99193.0,99179.0,0.09967605]
[1733435331636,0.00017579,99194.0,99187.0,0.201638]
[1733435331849,0.00017579,99194.0,99188.0,0.09967605]
[1733435332061,0.00017579,99194.0,99189.0,0.201635]
[1733435332268,0.00017579,99194.0,99190.0,0.09967605]
[1733435332933,0.00017579,99194.0,99191.0,0.201631]
[1733435333582,0.2025967,99202.0,99196.0,1.19982421]
[1733435334015,0.04558322,99201.0,99196.0,1.19982421]
[1733435334257,0.201616,99198.0,99196.0,1.19982421]
[1733435334467,0.05434438,99197.0,99196.0,1.19982421]
[1733435334906,0.05950642,99197.0,99196.0,1.19982421]
[1733435336018,0.03650642,99197.0,99196.0,1.19982421]
[1733435336234,0.01416204,99197.0,99196.0,1.20082421]
[1733435336695,0.01416204,99197.0,99196.0,1.20182421]
[1733435336696,0.02316204,99197.0,99196.0,1.20182421]
[1733435336916,0.018,99197.0,99196.0,1.20182421]
[1733435337547,0.01001772,99212.0,99196.0,1.19982421]
[1733435337818,0.018,99197.0,99196.0,1.20182421]
[1733435338923,0.009,99197.0,99196.0,1.20082421]
[1733435339338,0.007,99206.0,99197.0,0.201619]
[1733435340197,0.00516486,99205.0,99201.0,0.403217]
[1733435340408,0.00516486,99205.0,99203.0,0.278806]
[1733435340618,0.0008663,99210.0,99207.0,0.201598]
[1733435340825,0.0008663,99210.0,99209.0,0.401194]
[1733435341057,0.0008663,99210.0,99209.0,1.06012684]
[1733435341269,0.0009896,99239.0,99229.0,0.201553]
[1733435341734,0.00104056,99230.0,99229.0,0.201553]
[1733435341937,0.20259356,99230.0,99220.0,0.09035616]
[1733435342165,0.00104056,99230.0,99221.0,0.09967605]
[1733435342401,0.00620022,99230.0,99226.0,0.403117]
[1733435342633,0.00104056,99230.0,99228.0,0.201556]
[1733435342875,0.00104056,99230.0,99228.0,0.30123205]
[1733435343763,0.01004056,99230.0,99229.0,0.001]
[1733435343980,0.01204056,99230.0,99229.0,0.001]
[1733435344210,0.00304056,99230.0,99229.0,0.09967605]
[1733435344421,0.00304056,99230.0,99229.0,0.17557605]
[1733435344633,0.00404056,99230.0,99229.0,0.17557605]
[1733435345077,0.00304056,99230.0,99229.0,0.17557605]
[1733435345554,0.00304056,99230.0,99229.0,0.17657605]
[1733435345964,0.00104056,99230.0,99229.0,0.17657605]
[1733435346405,0.00304056,99230.0,99229.0,0.17657605]
[1733435346627,0.00104056,99230.0,99229.0,0.17557605]
[1733435347057,0.00104056,99230.0,99229.0,0.18057605]
[1733435347486,0.00104056,99230.0,99229.0,0.17857605]
[1733435347969,0.00104056,99230.0,99229.0,0.18057605]
[1733435348179,0.00104056,99230.0,99229.0,0.18158365]
[1733435348614,0.00104056,99230.0,99229.0,0.18057605]
[1733435353125,0.00104056,99230.0,99229.0,0.005]
[1733435354674,0.00104056,99230.0,99229.0,0.003]
[1733435354891,0.00204056,99230.0,99229.0,0.003]
[1733435355551,0.00104056,99230.0,99227.0,0.403114]
[1733435355764,0.00104056,99230.0,99229.0,0.202553]
[1733435356191,0.00104056,99230.0,99228.0,0.09967605]
[1733435356400,0.00104056,99230.0,99229.0,0.003]
[1733435356841,0.00104056,99230.0,99229.0,0.004]
[1733435357067,0.00622266,99230.0,99229.0,0.004]
[1733435357324,0.00623812,99230.0,99229.0,0.004]
[1733435357744,0.00623812,99230.0,99229.0,0.003]
[1733435358393,0.00623812,99230.0,99220.0,0.201572]
[1733435359978,0.00623812,99230.0,99220.0,0.205572]
[1733435360176,0.00623812,99230.0,99220.0,0.207572]
[1733435361361,0.00623812,99230.0,99227.0,0.201557]
[1733435361817,0.00623812,99230.0,99227.0,0.403114]
[1733435361818,0.00104056,99230.0,99227.0,0.403114]
[1733435362269,0.00104056,99230.0,99227.0,0.201557]
[1733435362497,0.00104056,99230.0,99227.0,0.202557]
[1733435363191,0.00104056,99230.0,99227.0,0.404114]
[1733435363426,0.00104056,99230.0,99227.0,0.405114]
[1733435363655,0.00104056,99230.0,99229.0,0.278353]
[1733435363875,0.00104056,99230.0,99229.0,0.37802905]
[1733435364302,0.00104056,99230.0,99229.0,0.30122905]
[1733435365162,0.00104056,99230.0,99229.0,0.57782905]
[1733435365375,0.000996,99249.0,99242.0,0.201526]
[1733435365578,0.201499,99256.0,99242.0,0.201526]
[1733435366032,0.201517,99247.0,99229.0,0.09967605]
[1733435366255,0.00518734,99246.0,99239.0,0.201533]
[1733435366483,0.201501,99255.0,99230.0,0.09967605]
[1733435366484,0.201522,99245.0,99231.0,0.201549]
[1733435366697,0.201522,99245.0,99229.0,0.00017586]
[1733435366698,0.00519964,99244.0,99242.0,0.001]
[1733435366905,0.00519964,99244.0,99229.0,0.00017586]
[1733435366906,0.20154,99236.0,99229.0,0.00017586]
[1733435367149,0.005181,99235.0,99229.0,0.00017586]
[1733435367565,0.201534,99239.0,99229.0,0.00017586]
[1733435367770,0.00518065,99234.0,99229.0,0.00017586]
[1733435368006,0.201538,99237.0,99229.0,0.00017586]
[1733435368494,0.00518241,99236.0,99229.0,0.00017586]
[1733435369139,0.201525,99243.0,99229.0,0.00017586]
[1733435369140,0.352951,99230.0,99229.0,0.00017586]
[1733435369351,0.352951,99230.0,99229.0,0.00317586]
[1733435369613,0.35814423,99230.0,99229.0,0.00317586]
[1733435369849,0.201576,99219.0,99204.0,0.15809979]
[1733435370078,0.00519048,99218.0,99204.0,0.25777584]
[1733435370282,0.023,99229.0,99208.0,0.201594]
[1733435370490,0.00618368,99228.0,99209.0,0.201594]
[1733435370709,0.201574,99219.0,99205.0,0.201601]
[1733435370942,0.00519048,99218.0,99205.0,0.201601]
[1733435371389,0.201578,99217.0,99205.0,0.201601]
[1733435371836,0.00518978,99216.0,99205.0,0.201601]
[1733435372920,0.00518978,99216.0,99205.0,0.205601]
[1733435373134,0.00518978,99216.0,99205.0,0.201601]
[1733435373344,0.00518978,99216.0,99205.0,0.405203]
[1733435373590,0.00518978,99216.0,99205.0,0.409203]
[1733435373812,0.201574,99219.0,99205.0,0.407203]
[1733435374016,0.00518943,99215.0,99209.0,0.201593]
[1733435374223,0.201574,99219.0,99209.0,0.201593]
[1733435374643,0.00519048,99218.0,99209.0,0.201593]
[1733435376166,0.00519048,99218.0,99215.0,0.20158]
[1733435376425,0.00519048,99218.0,99217.0,0.280978]
[1733435376661,0.0009908,99228.0,99226.0,0.201558]
[1733435376877,0.00104206,99230.0,99226.0,0.201558]
[1733435377082,0.00104206,99230.0,99226.0,0.403116]
[1733435377738,0.00104206,99230.0,99226.0,0.201558]
[1733435378803,0.00104206,99230.0,99228.0,0.201556]
[1733435379014,0.00104206,99230.0,99228.0,0.30123205]
[1733435379445,0.01004206,99230.0,99228.0,0.30123205]
[1733435379912,0.01004206,99230.0,99229.0,0.09967605]
[1733435380085,0.00104206,99230.0,99229.0,0.09967605]
[1733435380329,0.01904206,99230.0,99229.0,0.12075364]
[1733435380570,0.01904206,99230.0,99229.0,0.11974601]
[1733435380803,0.00104206,99230.0,99229.0,0.11974601]
[1733435381020,0.00104206,99230.0,99229.0,0.12075364]
[1733435382121,0.00104206,99230.0,99229.0,0.10068368]
[1733435382334,0.00104206,99230.0,99229.0,0.09026229]
[1733435382556,0.00104206,99230.0,99227.0,0.201557]
[1733435382767,0.00104206,99230.0,99229.0,0.201553]
[1733435382976,0.00104206,99230.0,99229.0,0.206553]
[1733435383182,0.00104206,99230.0,99229.0,0.203553]
[1733435383407,0.00104206,99230.0,99229.0,0.201553]
[1733435383687,0.00104206,99230.0,99229.0,0.204553]
[1733435384551,0.00104206,99230.0,99229.0,0.206553]
[1733435385795,0.00104206,99230.0,99229.0,0.29681529]
[1733435386597,0.00104206,99230.0,99229.0,0.005]
[1733435388704,0.00104206,99230.0,99229.0,0.09526229]
[1733435389106,0.12554206,99230.0,99229.0,0.005]
[1733435389307,0.17840577,99230.0,99229.0,0.005]
[1733435389872,0.18308525,99230.0,99229.0,0.005]
[1733435390289,0.13022154,99230.0,99229.0,0.002]
[1733435390541,0.201567,99223.0,99210.0,0.29358689]
[1733435390739,0.00467667,99222.0,99211.0,0.09967605]
[1733435390954,0.20157,99221.0,99211.0,0.09967605]
[1733435391384,0.00467596,99220.0,99211.0,0.09967605]
[1733435391612,0.00467596,99220.0,99212.0,0.201588]
[1733435391836,0.00467596,99220.0,99211.0,0.09967605]
[1733435392056,0.403134,99223.0,99211.0,0.09967605]
[1733435392284,0.00467667,99222.0,99211.0,0.09967605]
[1733435392519,0.20157,99221.0,99211.0,0.09967605]
[1733435392747,0.00467596,99220.0,99211.0,0.09967605]
[1733435392972,0.201574,99219.0,99211.0,0.09967605]
[1733435393197,0.00467596,99220.0,99211.0,0.10067605]
[1733435393438,0.00467561,99219.0,99211.0,0.09967605]
[1733435393649,0.22219437,99221.0,99211.0,0.10067605]
[1733435393650,0.22919437,99221.0,99211.0,0.10067605]
[1733435393887,0.00467596,99220.0,99211.0,0.10067605]
[1733435394098,0.00467596,99220.0,99212.0,0.201588]
[1733435394328,0.007,99221.0,99213.0,0.18993834]
[1733435394554,0.007,99221.0,99219.0,0.201573]
[1733435395236,0.007,99221.0,99220.0,0.09967605]
[1733435395467,0.00104206,99230.0,99220.0,0.09967605]
[1733435395730,0.00104206,99230.0,99229.0,0.201553]
[1733435396413,0.00104206,99230.0,99229.0,0.29195749]
[1733435396637,0.00804206,99230.0,99229.0,0.201553]
[1733435396862,0.00804206,99230.0,99229.0,0.30122905]
[1733435397072,0.01704206,99230.0,99229.0,0.30222905]
[1733435397295,0.01004206,99230.0,99229.0,0.30122905]
[1733435397507,0.01604206,99230.0,99229.0,0.30222905]
[1733435398653,0.02504206,99230.0,99229.0,0.86296961]
[1733435398945,0.01004206,99230.0,99229.0,0.81676324]
[1733435399151,0.01104206,99230.0,99229.0,0.96676324]
[1733435399368,0.01104206,99230.0,99229.0,0.78595914]
[1733435399369,0.00014697,99230.0,99229.0,0.78595914]
[1733435400008,0.2024937,99257.0,99229.0,0.58340614]
[1733435400215,0.2024937,99257.0,99247.0,0.201516]
[1733435400425,0.2024937,99257.0,99237.0,0.201536]
[1733435400426,0.00468262,99256.0,99251.0,0.201509]
[1733435400672,0.00468262,99256.0,99243.0,0.09039575]
[1733435400876,0.0008658,99260.0,99245.0,0.29191575]
[1733435401083,0.0008658,99260.0,99245.0,0.20152]
[1733435401301,0.201493,99259.0,99249.0,0.201513]
[1733435401531,0.201493,99259.0,99245.0,0.29191575]
[1733435401532,0.20618677,99259.0,99245.0,0.20152]
[1733435401766,0.201502,99255.0,99245.0,0.20152]
[1733435401997,0.20618677,99259.0,99245.0,0.20152]
[1733435402227,0.00468934,99258.0,99249.0,0.201513]
[1733435402442,0.00468793,99254.0,99249.0,0.201513]
[1733435402883,0.0008658,99260.0,99245.0,0.20152]
[1733435402884,0.201495,99258.0,99245.0,0.20152]
[1733435403091,0.00468758,99253.0,99245.0,0.20252]
[1733435403327,0.201504,99254.0,99245.0,0.002]
[1733435403546,0.00468723,99252.0,99244.0,0.09967605]
[1733435403760,0.0008658,99260.0,99244.0,0.09967605]
[1733435404040,0.009,99254.0,99249.0,0.001]
[1733435404909,0.009,99254.0,99249.0,0.002]
[1733435405129,0.00469734,99253.0,99249.0,0.001]
[1733435405635,0.007,99252.0,99249.0,0.001]
[1733435405878,0.01169699,99252.0,99249.0,0.001]
[1733435406101,0.201493,99259.0,99249.0,0.001]
[1733435406347,0.009,99253.0,99249.0,0.001]
[1733435406620,0.009,99253.0,99249.0,0.002]
[1733435406843,0.201497,99257.0,99247.0,0.201516]
[1733435407055,0.00469699,99252.0,99245.0,0.201521]
[1733435407289,0.01369699,99252.0,99249.0,0.001]
[1733435407494,0.009,99252.0,99249.0,0.001]
[1733435407727,0.00469664,99251.0,99249.0,0.001]
[1733435408172,0.00469664,99251.0,99249.0,0.002]
[1733435408405,0.00469664,99251.0,99249.0,0.001]
[1733435408828,0.210497,99257.0,99249.0,0.001]
[1733435409073,0.00469629,99250.0,99247.0,0.001]
[1733435409257,0.00469629,99250.0,99249.0,0.001]
[1733435409464,0.201509,99251.0,99249.0,0.001]
[1733435409676,0.201509,99251.0,99249.0,0.002]
[1733435409677,0.009,99251.0,99249.0,0.002]
[1733435409877,0.00469629,99250.0,99249.0,0.002]
[1733435410085,0.00469629,99250.0,99240.0,0.201531]
[1733435410319,0.201501,99255.0,99249.0,0.001]
[1733435410521,0.009,99250.0,99249.0,0.001]
[1733435411204,0.01369629,99250.0,99249.0,0.001]
[1733435411437,0.03669629,99250.0,99249.0,0.002]
[1733435411675,0.02769629,99250.0,99249.0,0.001]
[1733435412115,0.03369629,99250.0,99249.0,0.001]
[1733435412549,0.02769629,99250.0,99249.0,0.001]
[1733435412786,0.03669629,99250.0,99249.0,0.002]
[1733435413901,0.03669629,99250.0,99249.0,0.00047667]
[1733435414190,0.03669629,99250.0,99227.0,0.201558]
[1733435414191,0.201537,99238.0,99227.0,0.201558]
[1733435414345,0.201537,99238.0,99228.0,0.09967605]
[1733435414565,0.00469171,99237.0,99228.0,0.09967605]
[1733435415033,0.201539,99236.0,99228.0,0.09967605]
[1733435415261,0.00469101,99235.0,99227.0,0.201558]
[1733435415481,0.201537,99238.0,99228.0,0.006]
[1733435415712,0.00469171,99237.0,99228.0,0.006]
[1733435415938,0.201537,99238.0,99228.0,0.201556]
[1733435416175,0.00469171,99237.0,99228.0,0.205556]
[1733435416384,0.16457587,99236.0,99228.0,0.006]
[1733435416617,0.023,99235.0,99228.0,0.006]
[1733435416848,0.224553,99229.0,99228.0,0.004]
[1733435417064,0.22924189,99229.0,99228.0,0.004]
[1733435418442,0.22924189,99229.0,99228.0,0.01]
[1733435418676,0.30485538,99229.0,99228.0,0.006]
[1733435419127,0.30585538,99229.0,99228.0,0.005]
[1733435419381,0.41453143,99229.0,99228.0,0.006]
[1733435419593,0.42443024,99229.0,99228.0,0.006]
[1733435420500,0.2491407,99229.0,99228.0,0.006]
[1733435422443,0.0475877,99229.0,99228.0,0.006]
[1733435422663,0.01468889,99229.0,99228.0,0.006]
[1733435423113,0.01468889,99229.0,99228.0,0.207556]
[1733435423346,0.009,99229.0,99228.0,0.202556]
[1733435423564,0.201517,99247.0,99225.0,0.045]
[1733435423785,0.201526,99243.0,99230.0,0.201551]
[1733435424233,0.04574008,99242.0,99230.0,0.201551]
[1733435424500,0.0046843,99242.0,99230.0,0.201551]
[1733435424710,0.0046843,99242.0,99229.0,0.201553]
[1733435425141,0.201529,99241.0,99229.0,0.201553]
[1733435425561,0.201526,99243.0,99226.0,0.20156]
[1733435425562,0.201526,99243.0,99228.0,0.001]
[1733435425809,0.201526,99243.0,99229.0,0.201553]
[1733435425810,0.00469277,99240.0,99229.0,0.201553]
[1733435426036,0.00469347,99242.0,99229.0,0.202553]
[1733435426277,0.201526,99243.0,99229.0,0.201553]
[1733435426511,0.006,99241.0,99229.0,0.001]
[1733435426724,0.006,99241.0,99230.0,0.201551]
[1733435426931,0.201533,99240.0,99226.0,0.20156]
[1733435427142,0.2122166,99240.0,99229.0,0.001]
[1733435427585,0.2122166,99240.0,99230.0,0.201551]
[1733435427586,0.0106836,99240.0,99230.0,0.201551]
[1733435428494,0.0046836,99240.0,99230.0,0.201551]
[1733435428731,0.201533,99239.0,99230.0,0.002]
[1733435429151,0.201533,99239.0,99230.0,0.001]
[1733435429152,0.20629059,99239.0,99230.0,0.001]
[1733435429618,0.20629059,99239.0,99230.0,0.002]
[1733435430096,0.20629059,99239.0,99230.0,0.001]
[1733435430310,0.00475759,99239.0,99227.0,0.201558]
[1733435430541,0.20629159,99239.0,99227.0,0.201558]
[1733435431201,0.00475759,99239.0,99227.0,0.201558]
[1733435431446,0.00475759,99239.0,99230.0,0.001]
[1733435431662,0.005,99239.0,99230.0,0.001]
[1733435431874,0.201535,99238.0,99230.0,0.001]
[1733435432085,0.201535,99238.0,99228.0,0.201556]
[1733435432297,0.00476451,99238.0,99228.0,0.201556]
[1733435432756,0.201537,99237.0,99228.0,0.201556]
[1733435432967,0.03,99236.0,99226.0,0.201558]
[1733435433202,0.03,99236.0,99230.0,0.002]
[1733435433441,0.03380481,99236.0,99230.0,0.002]
[1733435433672,0.03,99234.0,99230.0,0.002]
[1733435434361,0.0338043,99233.0,99230.0,0.002]
[1733435434595,0.0338043,99233.0,99226.0,0.20156]
[1733435435036,0.0338043,99233.0,99228.0,0.001]
[1733435435259,0.0338043,99233.0,99225.0,0.20156]
[1733435435480,0.03,99232.0,99225.0,0.20156]
[1733435436114,0.03,99232.0,99226.0,0.001]
[1733435436334,0.03,99230.0,99226.0,0.001]
[1733435437029,0.00380366,99229.0,99226.0,0.001]
[1733435437322,0.03,99228.0,99226.0,0.001]
[1733435437966,0.00380333,99227.0,99220.0,0.2033032]
[1733435438192,0.00380333,99227.0,99226.0,0.001]
[1733435438417,0.00380333,99227.0,99220.0,0.0017322]